[Event "Titled Tuesday Blitz November 22 Early 2022"]
[White "Fedoseev, Vladimir"]
[Black "Stribuk, Artiom"]
[WhiteFideId "24130737"]
[BlackFideId "13515659"]
[WhiteElo "2726"]
[BlackElo "2371"]
[Result "1-0"]
[Round "03"]
[TimeControl "180+1"]
[Date "2022.11.22"]
[WhiteClock "0:00:49"]
[BlackClock "0:00:05"]

1. e4 {[%clk 0:03:00]}  c5 {[%clk 0:03:00]} 2. Nf3 {[%clk 0:02:59]}  Nc6 {[%clk 0:03:00]} 3. Bb5 {[%clk 0:02:58]}  e6 {[%clk 0:03:01]} 4. Bxc6 {[%clk 0:02:56]}  bxc6 {[%clk 0:03:02]} 5. Nc3 {[%clk 0:02:56]}  Ne7 {[%clk 0:02:59]} 6. d3 {[%clk 0:02:53]}  Ng6 {[%clk 0:02:41]} 7. h4 {[%clk 0:02:49]}  h5 {[%clk 0:02:41]} 8. e5 {[%clk 0:02:50]}  f6 {[%clk 0:02:36]} 9. Qe2 {[%clk 0:02:47]}  Nxe5 {[%clk 0:02:30]} 10. Nxe5 {[%clk 0:02:45]}  fxe5 {[%clk 0:02:31]} 11. Qxe5 {[%clk 0:02:42]}  Qf6 {[%clk 0:02:29]} 12. Qg3 {[%clk 0:02:40]}  d6 {[%clk 0:02:18]} 13. Ne4 {[%clk 0:02:37]}  Qe7 {[%clk 0:01:52]} 14. Bf4 {[%clk 0:02:23]}  e5 {[%clk 0:01:35]} 15. Qg6+ {[%clk 0:02:23]}  Kd7 {[%clk 0:01:21]} 16. Be3 {[%clk 0:02:13]}  Qe6 {[%clk 0:01:08]} 17. Qg3 {[%clk 0:02:10]}  Kc7 {[%clk 0:01:08]} 18. f3 {[%clk 0:02:03]}  Be7 {[%clk 0:01:02]} 19. Qxg7 {[%clk 0:01:43]}  Bd7 {[%clk 0:00:44]} 20. Bg5 {[%clk 0:01:38]}  Bxg5 {[%clk 0:00:38]} 21. hxg5 {[%clk 0:01:32]}  Rag8 {[%clk 0:00:36]} 22. Qf6 {[%clk 0:01:32]}  Qxf6 {[%clk 0:00:34]} 23. Nxf6 {[%clk 0:01:21]}  Rxg5 {[%clk 0:00:34]} 24. Kf2 {[%clk 0:01:22]}  Be6 {[%clk 0:00:34]} 25. Rh4 {[%clk 0:01:17]}  Rh6 {[%clk 0:00:32]} 26. Ne4 {[%clk 0:01:13]}  Rg8 {[%clk 0:00:20]} 27. b3 {[%clk 0:01:11]}  Bf7 {[%clk 0:00:17]} 28. Rah1 {[%clk 0:01:09]}  Re6 {[%clk 0:00:17]} 29. R1h2 {[%clk 0:01:07]}  Kd7 {[%clk 0:00:16]} 30. Ng3 {[%clk 0:01:04]}  Ke7 {[%clk 0:00:07]} 31. Nxh5 {[%clk 0:00:56]}  Reg6 {[%clk 0:00:07]} 32. g4 {[%clk 0:00:54]}  Bd5 {[%clk 0:00:06]} 33. Ng3 {[%clk 0:00:54]}  Be6 {[%clk 0:00:05]} 34. Ne4 {[%clk 0:00:51]}  R8g7 {[%clk 0:00:05]} 35. Ke3 {[%clk 0:00:50]}  Rf7 {[%clk 0:00:04]} 36. Rh7 {[%clk 0:00:49]}  Rgg7 {[%clk 0:00:04]} 37. Rxg7 {[%clk 0:00:48]}  Rxg7 {[%clk 0:00:04]} 38. Rh6 {[%clk 0:00:49]}  Bd5 {[%clk 0:00:05]} 39. Nxd6 {[%clk 0:00:49]} 1-0


[Site "https://www.chess.com"]

[Event "Titled Tuesday Blitz November 22 Early 2022"]
[White "Ferreira, Vitor Hugo Vieira"]
[Black "monkins"]
[WhiteFideId "2119765"]
[WhiteElo "2168"]
[BlackElo "2273"]
[Result "1-0"]
[Round "03"]
[TimeControl "180+1"]
[Date "2022.11.23"]
[WhiteClock "0:02:11"]
[BlackClock "0:00:05"]

1. Nf3 {[%clk 0:03:00]}  Nf6 {[%clk 0:02:59]} 2. g3 {[%clk 0:03:00]}  c5 {[%clk 0:02:59]} 3. Bg2 {[%clk 0:03:01]}  Nc6 {[%clk 0:02:59]} 4. O-O {[%clk 0:03:02]}  g6 {[%clk 0:03:00]} 5. c4 {[%clk 0:03:00]}  d5 {[%clk 0:02:58]} 6. cxd5 {[%clk 0:02:57]}  Nxd5 {[%clk 0:02:59]} 7. d4 {[%clk 0:02:57]}  cxd4 {[%clk 0:02:47]} 8. Nxd4 {[%clk 0:02:56]}  Bg7 {[%clk 0:02:47]} 9. Nxc6 {[%clk 0:02:55]}  bxc6 {[%clk 0:02:48]} 10. e4 {[%clk 0:02:55]}  Nb4 {[%clk 0:02:26]} 11. Qa4 {[%clk 0:02:54]}  Qb6 {[%clk 0:02:18]} 12. Be3 {[%clk 0:02:53]}  Qb5 {[%clk 0:02:16]} 13. Nc3 {[%clk 0:02:52]}  Bxc3 {[%clk 0:02:01]} 14. Qxb5 {[%clk 0:02:52]}  cxb5 {[%clk 0:02:02]} 15. bxc3 {[%clk 0:02:52]}  Nc2 {[%clk 0:01:59]} 16. Bd4 {[%clk 0:02:49]}  Nxd4 {[%clk 0:01:27]} 17. cxd4 {[%clk 0:02:48]}  Rb8 {[%clk 0:01:02]} 18. Rfc1 {[%clk 0:02:45]}  Kd7 {[%clk 0:00:58]} 19. Rc5 {[%clk 0:02:40]}  Rd8 {[%clk 0:00:38]} 20. Rac1 {[%clk 0:02:37]}  Ke8 {[%clk 0:00:31]} 21. Bf1 {[%clk 0:02:32]}  a6 {[%clk 0:00:25]} 22. d5 {[%clk 0:02:23]}  Bb7 {[%clk 0:00:24]} 23. Rc7 {[%clk 0:02:22]}  Rdc8 {[%clk 0:00:23]} 24. Rxb7 {[%clk 0:02:20]}  Rxc1 {[%clk 0:00:17]} 25. Rxb8+ {[%clk 0:02:19]}  Kd7 {[%clk 0:00:17]} 26. Rb6 {[%clk 0:02:14]}  f5 {[%clk 0:00:14]} 27. exf5 {[%clk 0:02:13]}  gxf5 {[%clk 0:00:15]} 28. Rxa6 {[%clk 0:02:14]}  Rb1 {[%clk 0:00:13]} 29. Rb6 {[%clk 0:02:12]}  Rb2 {[%clk 0:00:10]} 30. Bxb5+ {[%clk 0:02:11]}  Kc7 {[%clk 0:00:10]} 31. Rc6+ {[%clk 0:02:11]}  Kb7 {[%clk 0:00:08]} 32. a4 {[%clk 0:02:11]}  Rd2 {[%clk 0:00:05]} 33. Re6 {[%clk 0:02:11]} 1-0


[Site "https://www.chess.com"]

[Event "Titled Tuesday Blitz November 22 Early 2022"]
[White "Garv Gaur"]
[Black "Gonzalez Vega, Alejandro"]
[WhiteFideId "45030839"]
[BlackFideId "3510042"]
[WhiteElo "1960"]
[BlackElo "2284"]
[Result "1-0"]
[Round "03"]
[TimeControl "180+1"]
[Date "2022.11.23"]
[WhiteClock "0:00:22"]
[BlackClock "0:00:04"]

1. d4 {[%clk 0:03:00]}  d5 {[%clk 0:02:58]} 2. Nf3 {[%clk 0:03:00]}  Nf6 {[%clk 0:02:58]} 3. c4 {[%clk 0:03:01]}  e6 {[%clk 0:02:58]} 4. g3 {[%clk 0:03:02]}  Be7 {[%clk 0:02:57]} 5. Bg2 {[%clk 0:03:02]}  O-O {[%clk 0:02:57]} 6. O-O {[%clk 0:03:03]}  dxc4 {[%clk 0:02:58]} 7. Qc2 {[%clk 0:03:03]}  a6 {[%clk 0:02:58]} 8. a4 {[%clk 0:03:04]}  Nc6 {[%clk 0:02:57]} 9. Qxc4 {[%clk 0:03:03]}  Rb8 {[%clk 0:02:40]} 10. Nc3 {[%clk 0:03:00]}  Na5 {[%clk 0:02:30]} 11. Qd3 {[%clk 0:02:55]}  c5 {[%clk 0:02:24]} 12. Bf4 {[%clk 0:02:54]}  Ra8 {[%clk 0:02:21]} 13. Rad1 {[%clk 0:02:45]}  c4 {[%clk 0:01:56]} 14. Qc2 {[%clk 0:02:43]}  Nd5 {[%clk 0:01:54]} 15. Bd2 {[%clk 0:02:37]}  Nb4 {[%clk 0:01:52]} 16. Qb1 {[%clk 0:02:37]}  Nb3 {[%clk 0:01:49]} 17. Be1 {[%clk 0:02:10]}  Rb8 {[%clk 0:01:41]} 18. Ne5 {[%clk 0:02:01]}  Qc7 {[%clk 0:01:30]} 19. Na2 {[%clk 0:01:44]}  Nxa2 {[%clk 0:01:24]} 20. Qxa2 {[%clk 0:01:45]}  f6 {[%clk 0:01:24]} 21. Nf3 {[%clk 0:01:38]}  b5 {[%clk 0:01:24]} 22. e4 {[%clk 0:01:36]}  Bb7 {[%clk 0:01:13]} 23. d5 {[%clk 0:01:29]}  exd5 {[%clk 0:01:12]} 24. exd5 {[%clk 0:01:30]}  Bd6 {[%clk 0:01:11]} 25. Nh4 {[%clk 0:01:29]}  Bc8 {[%clk 0:01:03]} 26. Bd2 {[%clk 0:01:21]}  Bg4 {[%clk 0:00:58]} 27. f3 {[%clk 0:01:14]}  Bd7 {[%clk 0:00:57]} 28. f4 {[%clk 0:00:56]}  Qc5+ {[%clk 0:00:43]} 29. Kh1 {[%clk 0:00:56]}  Rfe8 {[%clk 0:00:40]} 30. Be1 {[%clk 0:00:49]}  Bg4 {[%clk 0:00:36]} 31. Bf2 {[%clk 0:00:49]}  Qb4 {[%clk 0:00:34]} 32. Rde1 {[%clk 0:00:43]}  Qd2 {[%clk 0:00:27]} 33. axb5 {[%clk 0:00:38]}  axb5 {[%clk 0:00:26]} 34. Qa7 {[%clk 0:00:33]}  Rxe1 {[%clk 0:00:17]} 35. Bxe1 {[%clk 0:00:32]}  Qxb2 {[%clk 0:00:14]} 36. Bb4 {[%clk 0:00:32]}  Nc5 {[%clk 0:00:09]} 37. Bxc5 {[%clk 0:00:31]}  Qe2 {[%clk 0:00:06]} 38. Bxd6 {[%clk 0:00:30]}  Rc8 {[%clk 0:00:06]} 39. h3 {[%clk 0:00:23]}  h5 {[%clk 0:00:04]} 40. hxg4 {[%clk 0:00:22]}  hxg4 {[%clk 0:00:04]} 41. Nf5 {[%clk 0:00:22]} 1-0


[Site "https://www.chess.com"]

[Event "Titled Tuesday Blitz November 22 Early 2022"]
[White "Gilmanov, Mansur"]
[Black "Le Goff, Damien"]
[WhiteFideId "4166868"]
[BlackFideId "634808"]
[WhiteElo "2377"]
[BlackElo "2371"]
[Result "1/2-1/2"]
[Round "03"]
[TimeControl "180+1"]
[Date "2022.11.23"]
[WhiteClock "0:00:12"]
[BlackClock "0:00:49"]

1. d4 {[%clk 0:02:57]}  f5 {[%clk 0:02:58]} 2. e3 {[%clk 0:02:56]}  Nf6 {[%clk 0:02:57]} 3. f4 {[%clk 0:02:55]}  d5 {[%clk 0:02:52]} 4. Nf3 {[%clk 0:02:56]}  e6 {[%clk 0:02:51]} 5. Bd3 {[%clk 0:02:56]}  a6 {[%clk 0:02:52]} 6. O-O {[%clk 0:02:57]}  c5 {[%clk 0:02:52]} 7. b3 {[%clk 0:02:58]}  Nc6 {[%clk 0:02:52]} 8. c3 {[%clk 0:02:56]}  Bd6 {[%clk 0:02:50]} 9. Ba3 {[%clk 0:02:55]}  Qe7 {[%clk 0:02:48]} 10. Ne5 {[%clk 0:02:53]}  cxd4 {[%clk 0:02:42]} 11. Bxd6 {[%clk 0:02:48]}  Qxd6 {[%clk 0:02:43]} 12. exd4 {[%clk 0:02:45]}  O-O {[%clk 0:02:41]} 13. Nd2 {[%clk 0:02:43]}  Ne4 {[%clk 0:02:39]} 14. Rc1 {[%clk 0:02:44]}  Bd7 {[%clk 0:02:35]} 15. Ndf3 {[%clk 0:02:41]}  Be8 {[%clk 0:02:35]} 16. Nxc6 {[%clk 0:02:38]}  bxc6 {[%clk 0:02:35]} 17. Ne5 {[%clk 0:02:38]}  c5 {[%clk 0:02:33]} 18. Bxe4 {[%clk 0:02:28]}  fxe4 {[%clk 0:02:31]} 19. c4 {[%clk 0:02:28]}  a5 {[%clk 0:02:24]} 20. cxd5 {[%clk 0:02:25]}  cxd4 {[%clk 0:02:21]} 21. Qxd4 {[%clk 0:02:18]}  exd5 {[%clk 0:02:21]} 22. Rfd1 {[%clk 0:02:18]}  Rxf4 {[%clk 0:02:16]} 23. Qxd5+ {[%clk 0:02:18]}  Qxd5 {[%clk 0:02:16]} 24. Rxd5 {[%clk 0:02:19]}  Rf5 {[%clk 0:02:10]} 25. g4 {[%clk 0:02:14]}  Rf4 {[%clk 0:02:07]} 26. Rf1 {[%clk 0:02:04]}  Rxf1+ {[%clk 0:02:02]} 27. Kxf1 {[%clk 0:02:05]}  a4 {[%clk 0:02:02]} 28. b4 {[%clk 0:02:05]}  a3 {[%clk 0:02:03]} 29. Kf2 {[%clk 0:01:54]}  Rb8 {[%clk 0:01:53]} 30. Rd4 {[%clk 0:01:40]}  Rc8 {[%clk 0:01:39]} 31. Rxe4 {[%clk 0:01:40]}  Bb5 {[%clk 0:01:37]} 32. Rd4 {[%clk 0:01:29]}  Rc2+ {[%clk 0:01:32]} 33. Kf3 {[%clk 0:01:28]}  g6 {[%clk 0:01:29]} 34. Rd5 {[%clk 0:00:40]}  Bf1 {[%clk 0:01:28]} 35. Ra5 {[%clk 0:00:37]}  Rxa2 {[%clk 0:01:25]} 36. h4 {[%clk 0:00:28]}  Ra1 {[%clk 0:01:21]} 37. Kf4 {[%clk 0:00:27]}  Rb1 {[%clk 0:01:08]} 38. Nc6 {[%clk 0:00:20]}  Bg2 {[%clk 0:00:59]} 39. b5 {[%clk 0:00:13]}  Rb4+ {[%clk 0:00:54]} 40. Kg3 {[%clk 0:00:13]}  Bxc6 {[%clk 0:00:51]} 41. bxc6 {[%clk 0:00:13]}  Rc4 {[%clk 0:00:49]} 42. Rxa3 {[%clk 0:00:13]}  Rxc6 {[%clk 0:00:49]} 43. Ra7 {[%clk 0:00:14]}  Rc5 {[%clk 0:00:49]} 44. g5 {[%clk 0:00:12]} 1/2-1/2


[Site "https://www.chess.com"]

[Event "Titled Tuesday Blitz November 22 Early 2022"]
[White "Gines Esteo, Pedro Antonio"]
[Black "Gheorghiu, Calin"]
[WhiteFideId "32080190"]
[BlackFideId "1200305"]
[WhiteElo "2422"]
[BlackElo "2225"]
[Result "1-0"]
[Round "03"]
[TimeControl "180+1"]
[Date "2022.11.23"]
[WhiteClock "0:01:32"]
[BlackClock "0:00:02"]

1. d4 {[%clk 0:02:54]}  Nf6 {[%clk 0:02:59]} 2. g3 {[%clk 0:02:52]}  e6 {[%clk 0:02:55]} 3. Bg2 {[%clk 0:02:52]}  c5 {[%clk 0:02:54]} 4. Nf3 {[%clk 0:02:49]}  cxd4 {[%clk 0:02:50]} 5. Nxd4 {[%clk 0:02:50]}  d5 {[%clk 0:02:49]} 6. O-O {[%clk 0:02:50]}  e5 {[%clk 0:02:48]} 7. Nb3 {[%clk 0:02:50]}  Nc6 {[%clk 0:02:49]} 8. c4 {[%clk 0:02:49]}  d4 {[%clk 0:02:39]} 9. f4 {[%clk 0:02:45]}  e4 {[%clk 0:02:01]} 10. f5 {[%clk 0:02:45]}  Be7 {[%clk 0:01:23]} 11. Bg5 {[%clk 0:02:41]}  O-O {[%clk 0:01:19]} 12. Bxf6 {[%clk 0:02:11]}  Bxf6 {[%clk 0:01:18]} 13. Bxe4 {[%clk 0:02:12]}  Re8 {[%clk 0:01:17]} 14. N1d2 {[%clk 0:02:10]}  Ne5 {[%clk 0:00:34]} 15. Bd5 {[%clk 0:02:01]}  Ng4 {[%clk 0:00:23]} 16. Ne4 {[%clk 0:02:01]}  Ne3 {[%clk 0:00:23]} 17. Nxf6+ {[%clk 0:02:01]}  Qxf6 {[%clk 0:00:23]} 18. Qxd4 {[%clk 0:02:01]}  Qxd4 {[%clk 0:00:07]} 19. Nxd4 {[%clk 0:02:02]}  Nxf1 {[%clk 0:00:07]} 20. Rxf1 {[%clk 0:02:00]}  a6 {[%clk 0:00:05]} 21. e4 {[%clk 0:01:58]}  Rb8 {[%clk 0:00:04]} 22. c5 {[%clk 0:01:54]}  Bd7 {[%clk 0:00:04]} 23. b4 {[%clk 0:01:54]}  a5 {[%clk 0:00:03]} 24. b5 {[%clk 0:01:54]}  Rec8 {[%clk 0:00:03]} 25. Rc1 {[%clk 0:01:52]}  Be8 {[%clk 0:00:02]} 26. Kf2 {[%clk 0:01:50]}  Kf8 {[%clk 0:00:03]} 27. Ke3 {[%clk 0:01:46]}  Ke7 {[%clk 0:00:03]} 28. e5 {[%clk 0:01:44]}  f6 {[%clk 0:00:03]} 29. e6 {[%clk 0:01:43]}  Rd8 {[%clk 0:00:03]} 30. Ke4 {[%clk 0:01:43]}  Rdc8 {[%clk 0:00:02]} 31. a4 {[%clk 0:01:42]}  Rd8 {[%clk 0:00:02]} 32. c6 {[%clk 0:01:36]}  bxc6 {[%clk 0:00:02]} 33. Bxc6 {[%clk 0:01:37]}  Rdc8 {[%clk 0:00:02]} 34. Rc5 {[%clk 0:01:32]} 1-0


[Site "https://www.chess.com"]

[Event "Titled Tuesday Blitz November 22 Early 2022"]
[White "Goriatchkin, Jouri"]
[Black "Ghosh, Chanchal Kumer"]
[WhiteFideId "4120183"]
[BlackFideId "10201858"]
[WhiteElo "1892"]
[BlackElo "2058"]
[Result "0-1"]
[Round "03"]
[TimeControl "180+1"]
[Date "2022.11.23"]
[WhiteClock "0:00:07"]
[BlackClock "0:00:08"]

1. d4 {[%clk 0:02:49]}  d5 {[%clk 0:02:59]} 2. c4 {[%clk 0:02:47]}  e6 {[%clk 0:02:59]} 3. Nc3 {[%clk 0:02:46]}  Nf6 {[%clk 0:03:00]} 4. Nf3 {[%clk 0:02:45]}  c6 {[%clk 0:02:59]} 5. e3 {[%clk 0:02:44]}  Nbd7 {[%clk 0:02:59]} 6. Qc2 {[%clk 0:02:43]}  Bd6 {[%clk 0:02:59]} 7. b3 {[%clk 0:02:42]}  O-O {[%clk 0:02:59]} 8. Be2 {[%clk 0:02:42]}  e5 {[%clk 0:02:58]} 9. cxd5 {[%clk 0:02:29]}  cxd5 {[%clk 0:02:54]} 10. dxe5 {[%clk 0:01:49]}  Nxe5 {[%clk 0:02:53]} 11. O-O {[%clk 0:01:45]}  Bg4 {[%clk 0:02:42]} 12. Nxe5 {[%clk 0:01:44]}  Bxe5 {[%clk 0:02:42]} 13. Bxg4 {[%clk 0:01:37]}  Nxg4 {[%clk 0:01:54]} 14. h3 {[%clk 0:01:37]}  Rc8 {[%clk 0:01:30]} 15. Bb2 {[%clk 0:01:32]}  Nf6 {[%clk 0:01:22]} 16. Qd2 {[%clk 0:01:10]}  Qa5 {[%clk 0:01:03]} 17. Rac1 {[%clk 0:01:10]}  Rc6 {[%clk 0:00:54]} 18. a3 {[%clk 0:00:52]}  Rfc8 {[%clk 0:00:44]} 19. b4 {[%clk 0:00:53]}  Qc7 {[%clk 0:00:43]} 20. Ne2 {[%clk 0:00:23]}  Bxb2 {[%clk 0:00:31]} 21. Qxb2 {[%clk 0:00:23]}  Ne4 {[%clk 0:00:24]} 22. Rxc6 {[%clk 0:00:22]}  Qxc6 {[%clk 0:00:21]} 23. Rc1 {[%clk 0:00:20]}  Qd7 {[%clk 0:00:20]} 24. Rxc8+ {[%clk 0:00:17]}  Qxc8 {[%clk 0:00:21]} 25. f3 {[%clk 0:00:16]}  Nf6 {[%clk 0:00:19]} 26. Qc3 {[%clk 0:00:16]}  Qe8 {[%clk 0:00:18]} 27. Nd4 {[%clk 0:00:16]}  h6 {[%clk 0:00:17]} 28. Kf2 {[%clk 0:00:16]}  Qe5 {[%clk 0:00:17]} 29. Ne2 {[%clk 0:00:14]}  Qh2 {[%clk 0:00:15]} 30. Ng3 {[%clk 0:00:13]}  h5 {[%clk 0:00:14]} 31. Qc8+ {[%clk 0:00:12]}  Kh7 {[%clk 0:00:14]} 32. Qf5+ {[%clk 0:00:13]}  Kg8 {[%clk 0:00:14]} 33. Qc8+ {[%clk 0:00:12]}  Kh7 {[%clk 0:00:14]} 34. Qxb7 {[%clk 0:00:12]}  h4 {[%clk 0:00:13]} 35. Ne2 {[%clk 0:00:11]}  Qe5 {[%clk 0:00:12]} 36. Qb5 {[%clk 0:00:11]}  g5 {[%clk 0:00:11]} 37. Qd3+ {[%clk 0:00:11]}  Kg7 {[%clk 0:00:11]} 38. Qd4 {[%clk 0:00:11]}  Qf5 {[%clk 0:00:10]} 39. Kg1 {[%clk 0:00:07]}  Kh6 {[%clk 0:00:10]} 40. Kh2 {[%clk 0:00:07]}  Kg6 {[%clk 0:00:09]} 41. Kg1 {[%clk 0:00:07]}  Kg7 {[%clk 0:00:09]} 42. Kh2 {[%clk 0:00:06]}  Kh6 {[%clk 0:00:09]} 43. Nc3 {[%clk 0:00:05]}  Kg6 {[%clk 0:00:07]} 44. e4 {[%clk 0:00:06]}  dxe4 {[%clk 0:00:08]} 45. fxe4 {[%clk 0:00:07]}  Qf4+ {[%clk 0:00:08]} 46. Kh1 {[%clk 0:00:07]}  g4 {[%clk 0:00:08]} 0-1


[Site "https://www.chess.com"]

[Event "Titled Tuesday Blitz November 22 Early 2022"]
[White "Goroshkov, Maksym"]
[Black "Mihailidis, Anastasios"]
[WhiteFideId "14142716"]
[BlackFideId "4205588"]
[WhiteElo "2257"]
[BlackElo "2312"]
[Result "1-0"]
[Round "03"]
[TimeControl "180+1"]
[Date "2022.11.23"]
[WhiteClock "0:02:01"]
[BlackClock "0:01:41"]

1. e4 {[%clk 0:03:00]}  c5 {[%clk 0:02:56]} 2. c3 {[%clk 0:02:59]}  d5 {[%clk 0:02:55]} 3. exd5 {[%clk 0:02:59]}  Qxd5 {[%clk 0:02:56]} 4. d4 {[%clk 0:03:00]}  Nf6 {[%clk 0:02:56]} 5. Nf3 {[%clk 0:02:59]}  Bg4 {[%clk 0:02:56]} 6. Be2 {[%clk 0:03:00]}  Nc6 {[%clk 0:02:54]} 7. c4 {[%clk 0:02:59]}  Qd6 {[%clk 0:02:49]} 8. d5 {[%clk 0:02:59]}  Ne5 {[%clk 0:02:49]} 9. O-O {[%clk 0:02:57]}  Bxf3 {[%clk 0:02:48]} 10. Bxf3 {[%clk 0:02:58]}  Nxf3+ {[%clk 0:02:45]} 11. Qxf3 {[%clk 0:02:57]}  g6 {[%clk 0:02:45]} 12. Bf4 {[%clk 0:02:44]}  Qd7 {[%clk 0:02:44]} 13. d6 {[%clk 0:02:36]}  e6 {[%clk 0:02:30]} 14. Be5 {[%clk 0:02:34]}  Ng8 {[%clk 0:02:04]} 15. Bxh8 {[%clk 0:02:31]}  f6 {[%clk 0:02:04]} 16. Bxf6 {[%clk 0:02:29]}  Nxf6 {[%clk 0:02:05]} 17. Qxf6 {[%clk 0:02:30]}  Bg7 {[%clk 0:02:05]} 18. Qf4 {[%clk 0:02:16]}  Bxb2 {[%clk 0:02:04]} 19. Nd2 {[%clk 0:02:15]}  Bxa1 {[%clk 0:01:57]} 20. Rxa1 {[%clk 0:02:14]}  O-O-O {[%clk 0:01:57]} 21. Ne4 {[%clk 0:02:14]}  b6 {[%clk 0:01:56]} 22. Rd1 {[%clk 0:02:12]}  Re8 {[%clk 0:01:40]} 23. Nf6 {[%clk 0:02:09]}  Qf7 {[%clk 0:01:40]} 24. d7+ {[%clk 0:02:08]}  Kd8 {[%clk 0:01:41]} 25. dxe8=Q# {[%clk 0:02:01]} 1-0


[Site "https://www.chess.com"]

[Event "Titled Tuesday Blitz November 22 Early 2022"]
[White "Grabinsky, Vladimir"]
[Black "Ciuffoletti, Paolo"]
[WhiteFideId "14107074"]
[BlackFideId "807630"]
[WhiteElo "2198"]
[BlackElo "2143"]
[Result "1-0"]
[Round "03"]
[TimeControl "180+1"]
[Date "2022.11.23"]
[WhiteClock "0:00:09"]
[BlackClock "0:00:30"]

1. e4 {[%clk 0:01:12]}  c5 {[%clk 0:02:57]} 2. b4 {[%clk 0:01:12]}  cxb4 {[%clk 0:02:55]} 3. a3 {[%clk 0:01:12]}  d5 {[%clk 0:02:51]} 4. exd5 {[%clk 0:01:12]}  Qxd5 {[%clk 0:02:49]} 5. Bb2 {[%clk 0:01:12]}  Nf6 {[%clk 0:02:31]} 6. Nf3 {[%clk 0:01:12]}  Nc6 {[%clk 0:02:24]} 7. axb4 {[%clk 0:01:09]}  Nxb4 {[%clk 0:02:04]} 8. Nc3 {[%clk 0:01:08]}  Qd8 {[%clk 0:01:59]} 9. Bb5+ {[%clk 0:01:07]}  Bd7 {[%clk 0:01:56]} 10. O-O {[%clk 0:01:06]}  Nc6 {[%clk 0:01:40]} 11. Re1 {[%clk 0:01:02]}  e6 {[%clk 0:01:40]} 12. Bxc6 {[%clk 0:00:39]}  Bxc6 {[%clk 0:01:39]} 13. Ne5 {[%clk 0:00:40]}  Qc7 {[%clk 0:01:34]} 14. Qe2 {[%clk 0:00:30]}  a6 {[%clk 0:01:22]} 15. Nb5 {[%clk 0:00:28]}  Qb6 {[%clk 0:01:00]} 16. Nxc6 {[%clk 0:00:22]}  Qxc6 {[%clk 0:00:56]} 17. Be5 {[%clk 0:00:17]}  Rc8 {[%clk 0:00:55]} 18. Na7 {[%clk 0:00:16]}  Qd7 {[%clk 0:00:46]} 19. Nxc8 {[%clk 0:00:17]}  Qxc8 {[%clk 0:00:47]} 20. c3 {[%clk 0:00:16]}  Be7 {[%clk 0:00:47]} 21. d4 {[%clk 0:00:16]}  O-O {[%clk 0:00:47]} 22. Qd3 {[%clk 0:00:15]}  Nd5 {[%clk 0:00:45]} 23. c4 {[%clk 0:00:14]}  Nb6 {[%clk 0:00:44]} 24. Qg3 {[%clk 0:00:14]}  f6 {[%clk 0:00:41]} 25. Bd6 {[%clk 0:00:12]}  Re8 {[%clk 0:00:35]} 26. Bxe7 {[%clk 0:00:12]}  Rxe7 {[%clk 0:00:35]} 27. Rac1 {[%clk 0:00:12]}  Qd7 {[%clk 0:00:33]} 28. Qe3 {[%clk 0:00:11]}  Qd6 {[%clk 0:00:30]} 29. c5 {[%clk 0:00:09]} 1-0


[Site "https://www.chess.com"]

[Event "Titled Tuesday Blitz November 22 Early 2022"]
[White "Grandelius, Nils"]
[Black "Aldokhin, Ivan"]
[WhiteFideId "1710400"]
[BlackFideId "24115720"]
[WhiteElo "2617"]
[BlackElo "2313"]
[Result "1-0"]
[Round "03"]
[TimeControl "180+1"]
[Date "2022.11.22"]
[WhiteClock "0:00:09"]
[BlackClock "0:00:01"]

1. c4 {[%clk 0:03:00]}  Nf6 {[%clk 0:02:59]} 2. g3 {[%clk 0:03:00]}  g6 {[%clk 0:02:59]} 3. Bg2 {[%clk 0:03:00]}  Bg7 {[%clk 0:03:00]} 4. Nc3 {[%clk 0:03:00]}  O-O {[%clk 0:03:01]} 5. d3 {[%clk 0:02:58]}  d6 {[%clk 0:03:01]} 6. Bg5 {[%clk 0:02:59]}  h6 {[%clk 0:02:58]} 7. Bd2 {[%clk 0:02:59]}  c6 {[%clk 0:02:54]} 8. e4 {[%clk 0:02:53]}  d5 {[%clk 0:02:46]} 9. cxd5 {[%clk 0:02:49]}  cxd5 {[%clk 0:02:46]} 10. e5 {[%clk 0:02:50]}  d4 {[%clk 0:01:52]} 11. exf6 {[%clk 0:02:50]}  dxc3 {[%clk 0:01:51]} 12. fxg7 {[%clk 0:02:51]}  cxd2+ {[%clk 0:01:51]} 13. Qxd2 {[%clk 0:02:51]}  Kxg7 {[%clk 0:01:50]} 14. Nf3 {[%clk 0:02:49]}  Nc6 {[%clk 0:01:48]} 15. O-O {[%clk 0:02:46]}  Bg4 {[%clk 0:01:41]} 16. Qc3+ {[%clk 0:02:27]}  f6 {[%clk 0:01:41]} 17. Rfe1 {[%clk 0:02:20]}  e5 {[%clk 0:01:18]} 18. d4 {[%clk 0:01:14]}  Bxf3 {[%clk 0:01:04]} 19. Qxf3 {[%clk 0:01:12]}  exd4 {[%clk 0:00:44]} 20. Red1 {[%clk 0:00:44]}  Rf7 {[%clk 0:00:38]} 21. Qf4 {[%clk 0:00:39]}  Qc7 {[%clk 0:00:27]} 22. Qxc7 {[%clk 0:00:32]}  Rxc7 {[%clk 0:00:27]} 23. Bxc6 {[%clk 0:00:29]}  Rxc6 {[%clk 0:00:11]} 24. Rxd4 {[%clk 0:00:30]}  Rc7 {[%clk 0:00:11]} 25. Rad1 {[%clk 0:00:30]}  Re8 {[%clk 0:00:12]} 26. R1d2 {[%clk 0:00:28]}  Ree7 {[%clk 0:00:12]} 27. Kg2 {[%clk 0:00:28]}  Kf7 {[%clk 0:00:13]} 28. g4 {[%clk 0:00:26]}  Rc5 {[%clk 0:00:11]} 29. Rd8 {[%clk 0:00:24]}  Rc4 {[%clk 0:00:09]} 30. h3 {[%clk 0:00:24]}  Rcc7 {[%clk 0:00:09]} 31. Rh8 {[%clk 0:00:22]}  Kg7 {[%clk 0:00:09]} 32. Rdd8 {[%clk 0:00:22]}  Rc2 {[%clk 0:00:04]} 33. Rdg8+ {[%clk 0:00:21]}  Kf7 {[%clk 0:00:04]} 34. Rf8+ {[%clk 0:00:20]}  Ke6 {[%clk 0:00:04]} 35. Rxh6 {[%clk 0:00:19]}  Rxb2 {[%clk 0:00:03]} 36. Rxg6 {[%clk 0:00:20]}  Rf7 {[%clk 0:00:04]} 37. Re8+ {[%clk 0:00:15]}  Kd7 {[%clk 0:00:04]} 38. Re3 {[%clk 0:00:13]}  Rxa2 {[%clk 0:00:04]} 39. h4 {[%clk 0:00:14]}  Ra4 {[%clk 0:00:04]} 40. h5 {[%clk 0:00:14]}  f5 {[%clk 0:00:03]} 41. g5 {[%clk 0:00:11]}  Rg4+ {[%clk 0:00:01]} 42. Kh3 {[%clk 0:00:11]}  Rf4 {[%clk 0:00:02]} 43. f3 {[%clk 0:00:10]}  Rd4 {[%clk 0:00:02]} 44. h6 {[%clk 0:00:10]}  f4 {[%clk 0:00:02]} 45. Re2 {[%clk 0:00:08]}  Rd1 {[%clk 0:00:02]} 46. Rg7 {[%clk 0:00:08]}  Rxg7 {[%clk 0:00:02]} 47. hxg7 {[%clk 0:00:08]}  Kd6 {[%clk 0:00:01]} 48. g8=Q {[%clk 0:00:08]}  Kc5 {[%clk 0:00:01]} 49. Kg4 {[%clk 0:00:09]} 1-0


[Site "https://www.chess.com"]